fUST/lending_fUST_20250220
["ID","MTS","AMOUNT","RATE_DAILY","PERIOD"]
[353725748,1739998257038,-500.0,0.00014109,2]
[353725750,1739998257048,-642.51,0.00014109,2]
[353725752,1739998257057,-11131.15,0.00014109,2]
[353725754,1739998257067,-1481.01,0.00014109,2]
[353725756,1739998257076,-2331.82,0.00014109,2]
[353725758,1739998257086,-840.9,0.00014109,2]
[353725760,1739998257095,-185.01949623,0.00014109,2]
[353725762,1739998257106,-1405.2,0.00014109,2]
[353725764,1739998257115,-500.0,0.00014109,2]
[353725766,1739998257125,-1355.31,0.00014109,2]
[353725768,1739998257134,-2081.89,0.00014109,2]
[353725770,1739998257143,-1273.09,0.00014109,2]
[353725772,1739998257152,-500.0,0.00014109,2]
[353725774,1739998257162,-500.0,0.00014109,2]
[353725776,1739998257171,-3658.91,0.00014109,2]
[353725778,1739998257180,-500.0,0.00014109,2]
[353725779,1739998257189,-500.0,0.00014109,2]
[353725781,1739998257200,-1053.16,0.00014109,2]
[353725783,1739998257210,-559.97,0.00014109,2]
[353725785,1739998257221,-500.0,0.00014109,2]
[353725787,1739998257230,-500.0,0.00014109,2]
[353725789,1739998257240,-558.31,0.00014109,2]
[353725791,1739998257249,-500.0,0.00014109,2]
[353725793,1739998257259,-500.0,0.00014109,2]
[353725795,1739998257268,-500.0,0.00014109,2]
[353725797,1739998257279,-500.0,0.00014109,2]
[353725799,1739998257288,-500.0,0.00014109,2]
[353725801,1739998257298,-2610.53,0.00014109,2]
[353725803,1739998257307,-500.0,0.00014109,2]
[353725805,1739998257316,-1417.44,0.00014109,2]
[353725807,1739998257326,-500.0,0.00014109,2]
[353725809,1739998257336,-500.0,0.00014109,2]
[353725811,1739998257346,-1045.6,0.00014109,2]
[353725813,1739998257355,-1307.94,0.00014109,2]
[353725815,1739998257365,-500.0,0.00014109,2]
[353725817,1739998257373,-600.0,0.00014164,2]
[353725819,1739998257383,-500.0,0.00014191,2]
[353725821,1739998257391,-240.41967557,0.00014191,2]
[353725823,1739998257402,-500.0,0.00014191,2]
[353725825,1739998257411,-500.0,0.00014191,2]
[353725827,1739998257421,-500.0,0.00014191,2]
[353725829,1739998257431,-259.25194406,0.00014191,2]
[353725831,1739998257439,-500.0,0.00014191,2]
[353725833,1739998257450,-500.0,0.00014191,2]
[353725835,1739998257460,-500.0,0.00014191,2]
[353725837,1739998257470,-509.18,0.00014191,2]
[353725839,1739998257479,-735.72,0.00014191,2]
[353725841,1739998257488,-503.31,0.00014191,2]
[353725843,1739998257498,-500.0,0.00014191,2]
[353725845,1739998257508,-500.0,0.00014191,2]
[353725846,1739998257517,-500.0,0.00014191,2]
[353725848,1739998257527,-532.29,0.00014191,2]
[353725850,1739998257536,-500.0,0.00014191,2]
[353725852,1739998257546,-770.11,0.00014191,2]
[353725854,1739998257556,-500.0,0.00014191,2]
[353725856,1739998257566,-500.0,0.00014191,2]
[353725858,1739998257576,-500.0,0.00014191,2]
[353725860,1739998257586,-724.13,0.00014191,2]
[353725862,1739998257596,-500.0,0.00014191,2]
[353725864,1739998257605,-500.0,0.00014191,2]
[353725866,1739998257615,-500.0,0.00014191,2]
[353725868,1739998257625,-500.0,0.00014191,2]
[353725870,1739998257634,-500.0,0.00014191,2]
[353725872,1739998257643,-686.46,0.00014191,2]
[353725874,1739998257653,-8858.9,0.00014191,2]
[353725876,1739998257663,-584.99,0.00014191,2]
[353725878,1739998257672,-826.72,0.00014191,2]
[353725880,1739998257681,-823.17,0.00014191,2]
[353725882,1739998257690,-974.98,0.00014191,2]
[353725884,1739998257701,-500.0,0.00014191,2]
[353725886,1739998257710,-500.0,0.00014191,2]
[353725888,1739998257720,-500.0,0.00014191,2]
[353725890,1739998257730,-2651.57,0.00014191,2]
[353725892,1739998257739,-530.92,0.00014191,2]
[353725894,1739998257748,-500.0,0.00014191,2]
[353725896,1739998257757,-500.0,0.00014191,2]
[353725898,1739998257767,-605.78,0.00014191,2]
[353725900,1739998257777,-960.62,0.00014191,2]
[353725901,1739998257787,-520.47,0.00014191,2]
[353725903,1739998257796,-514.43,0.00014191,2]
[353725905,1739998257806,-500.0,0.00014191,2]
[353725908,1739998257816,-500.0,0.00014191,2]
[353725909,1739998257826,-500.0,0.00014191,2]
[353725911,1739998257836,-500.0,0.00014191,2]
[353725913,1739998257845,-500.0,0.00014191,2]
[353725915,1739998257856,-556.45,0.00014191,2]
[353725917,1739998257866,-500.0,0.00014191,2]
[353725919,1739998257876,-2343.02,0.00014191,2]
[353725927,1739998257955,-500.0,0.00014191,2]
[353725929,1739998257966,-500.0,0.00014191,2]
[353725931,1739998257976,-5829.82,0.00014191,2]
[353725933,1739998257986,-2086.58,0.00014191,2]
[353725935,1739998257995,-941.7,0.00014191,2]
[353725937,1739998258005,-500.0,0.00014191,2]
[353725939,1739998258015,-1298.13,0.00014191,2]
[353725941,1739998258026,-500.0,0.00014191,2]
[353725943,1739998258036,-895.31,0.00014191,2]
[353725945,1739998258045,-1140.92,0.00014191,2]
[353725947,1739998258056,-2373.44,0.00014191,2]
[353725949,1739998258066,-500.0,0.00014191,2]
[353725951,1739998258077,-25588.85,0.00014191,2]
[353725953,1739998258087,-500.0,0.00014191,2]
[353725955,1739998258097,-500.0,0.00014191,2]
[353725957,1739998258107,-1098.92,0.00014191,2]
[353725959,1739998258116,-500.0,0.00014191,2]
[353725961,1739998258126,-642.51,0.00014191,2]
[353725963,1739998258136,-11131.15,0.00014191,2]
[353725965,1739998258146,-1481.01,0.00014191,2]
[353725967,1739998258156,-2331.82,0.00014191,2]
[353725969,1739998258166,-840.9,0.00014191,2]
[353725971,1739998258179,-1405.2,0.00014191,2]
[353725974,1739998258190,-500.0,0.00014191,2]
[353725975,1739998258200,-1355.31,0.00014191,2]
[353725978,1739998258210,-2081.89,0.00014191,2]
[353725979,1739998258220,-1273.09,0.00014191,2]
[353725981,1739998258230,-500.0,0.00014191,2]
[353725984,1739998258241,-500.0,0.00014191,2]
[353725985,1739998258250,-3658.91,0.00014191,2]
[353725988,1739998258261,-500.0,0.00014191,2]
[353725989,1739998258270,-500.0,0.00014191,2]
[353725991,1739998258280,-1053.16,0.00014191,2]
[353725993,1739998258290,-559.97,0.00014191,2]
[353725995,1739998258299,-500.0,0.00014191,2]
[353725997,1739998258309,-558.31,0.00014191,2]
[353725999,1739998258318,-500.0,0.00014191,2]
[353726001,1739998258328,-500.0,0.00014191,2]
[353726003,1739998258337,-500.0,0.00014191,2]
[353726005,1739998258346,-500.0,0.00014191,2]
[353726007,1739998258357,-2610.53,0.00014191,2]
[353726009,1739998258367,-500.0,0.00014191,2]
[353726011,1739998258376,-1417.44,0.00014191,2]
[353726013,1739998258386,-626.98373473,0.00014191,2]
[353726015,1739998258395,-500.0,0.00014191,2]
[353726017,1739998258405,-1045.6,0.00014191,2]
[353726019,1739998258414,-1307.94,0.00014191,2]
[353726021,1739998258424,-500.0,0.00014191,2]
[353726023,1739998258439,-356.12187364,0.00014215,2]
[353726024,1739998258458,-1007.8268122,0.00014247,2]
[353726025,1739998258475,-500.0,0.00014247,2]
[353726026,1739998258495,-327.74060149,0.00014273,2]
[353726027,1739998258515,-611.96,0.00014273,2]
[353726028,1739998258532,-500.0,0.00014273,2]
[353726029,1739998258550,-367.72115366,0.00014273,2]
[353726030,1739998258566,-500.0,0.00014273,2]
[353726031,1739998258581,-509.18,0.00014273,2]
[353726034,1739998258600,-735.72,0.00014273,2]
[353726037,1739998258620,-503.31,0.00014273,2]
[353726039,1739998258636,-500.0,0.00014273,2]
[353726042,1739998258649,-500.0,0.00014273,2]
[353726045,1739998258669,-500.0,0.00014273,2]
[353726048,1739998258683,-532.29,0.00014273,2]
[353726050,1739998258698,-500.0,0.00014273,2]
[353726053,1739998258712,-770.11,0.00014273,2]
[353726055,1739998258728,-500.0,0.00014273,2]
[353726058,1739998258741,-500.0,0.00014273,2]
[353726060,1739998258756,-500.0,0.00014273,2]
[353726063,1739998258772,-724.13,0.00014273,2]
[353726066,1739998258788,-500.0,0.00014273,2]
[353726068,1739998258802,-500.0,0.00014273,2]
[353726071,1739998258817,-500.0,0.00014273,2]
[353726073,1739998258832,-500.0,0.00014273,2]
[353726076,1739998258847,-686.46,0.00014273,2]
[353726079,1739998258862,-8858.9,0.00014273,2]
[353726081,1739998258878,-584.99,0.00014273,2]
[353726084,1739998258895,-826.72,0.00014273,2]
[353726086,1739998258910,-823.17,0.00014273,2]
[353726089,1739998258924,-974.98,0.00014273,2]
[353726091,1739998258939,-500.0,0.00014273,2]
[353726094,1739998258954,-500.0,0.00014273,2]
[353726096,1739998258972,-500.0,0.00014273,2]
[353726099,1739998258987,-2651.57,0.00014273,2]
[353726101,1739998259001,-530.92,0.00014273,2]
[353726104,1739998259015,-500.0,0.00014273,2]
[353726106,1739998259029,-605.78,0.00014273,2]
[353726109,1739998259044,-960.62,0.00014273,2]
[353726111,1739998259060,-520.47,0.00014273,2]
[353726114,1739998259075,-514.43,0.00014273,2]
[353726117,1739998259089,-500.0,0.00014273,2]
[353726119,1739998259104,-503.69824701,0.00014273,2]
[353726122,1739998259118,-500.0,0.00014273,2]
[353726124,1739998259132,-500.0,0.00014273,2]
[353726127,1739998259147,-500.0,0.00014273,2]
[353726129,1739998259163,-556.45,0.00014273,2]
[353726132,1739998259178,-500.0,0.00014273,2]
[353726134,1739998259193,-2343.02,0.00014273,2]
[353726146,1739998259208,-500.0,0.00014273,2]
[353726148,1739998259304,-5829.82,0.00014273,2]
[353726150,1739998259314,-2086.58,0.00014273,2]
[353726152,1739998259324,-941.7,0.00014273,2]
[353726154,1739998259334,-500.0,0.00014273,2]
[353726156,1739998259344,-1298.13,0.00014273,2]
[353726158,1739998259354,-500.0,0.00014273,2]
[353726160,1739998259365,-895.31,0.00014273,2]
[353726162,1739998259374,-1140.92,0.00014273,2]
[353726164,1739998259384,-2373.44,0.00014273,2]
[353726166,1739998259394,-500.0,0.00014273,2]
[353726168,1739998259403,-25588.85,0.00014273,2]
[353726170,1739998259414,-300.16,0.00014273,2]
[353726172,1739998259423,-500.0,0.00014273,2]
[353726174,1739998259433,-1098.92,0.00014273,2]
[353726176,1739998259442,-500.0,0.00014273,2]
[353726178,1739998259453,-642.51,0.00014273,2]
[353726180,1739998259462,-11131.15,0.00014273,2]
[353726182,1739998259472,-1481.01,0.00014273,2]
[353726184,1739998259481,-2331.82,0.00014273,2]
[353726186,1739998259491,-840.9,0.00014273,2]
[353726188,1739998259501,-1405.2,0.00014273,2]
[353726190,1739998259510,-500.0,0.00014273,2]
[353726192,1739998259519,-1355.31,0.00014273,2]
[353726194,1739998259529,-2081.89,0.00014273,2]
[353726196,1739998259538,-1273.09,0.00014273,2]
[353726198,1739998259548,-500.0,0.00014273,2]
[353726200,1739998259557,-500.0,0.00014273,2]
[353726202,1739998259566,-3658.91,0.00014273,2]
[353726204,1739998259576,-500.0,0.00014273,2]
[353726206,1739998259585,-500.0,0.00014273,2]
[353726208,1739998259595,-1053.16,0.00014273,2]
[353726210,1739998259605,-559.97,0.00014273,2]
[353726212,1739998259616,-502.34888546,0.00014273,2]
[353726214,1739998259627,-558.31,0.00014273,2]
[353726216,1739998259637,-502.60910499,0.00014273,2]
[353726218,1739998259647,-500.0,0.00014273,2]
[353726221,1739998259656,-500.0,0.00014273,2]
[353726222,1739998259666,-500.0,0.00014273,2]
[353726224,1739998259675,-2610.53,0.00014273,2]
[353726227,1739998259685,-500.0,0.00014273,2]
[353726228,1739998259695,-1417.44,0.00014273,2]
[353726231,1739998259705,-569.71462104,0.00014273,2]
[353726233,1739998259715,-1045.6,0.00014273,2]
[353726235,1739998259725,-1307.94,0.00014273,2]
[353726237,1739998259735,-376.79,0.00014273,2]
[353726239,1739998259744,-151.0,0.000143,2]
[353726241,1739998259755,-1000.0,0.00014321,2]
[353726243,1739998259764,-184.97113629,0.00014321,2]
[353726245,1739998259773,-1000.0,0.00014321,2]
[353726247,1739998259783,-1000.0,0.00014321,2]
[353726249,1739998259793,-1000.0,0.00014321,2]
[353726251,1739998259802,-1000.0,0.00014321,2]
[353726253,1739998259811,-500.0,0.00014356,2]
[353726255,1739998259821,-500.0,0.00014356,2]
[353726257,1739998259830,-509.18,0.00014356,2]
[353726259,1739998259839,-735.72,0.00014356,2]
[353726261,1739998259849,-503.31,0.00014356,2]
[353726263,1739998259859,-500.0,0.00014356,2]
[353726265,1739998259869,-500.0,0.00014356,2]
[353726268,1739998259883,-500.0,0.00014356,2]
[353726269,1739998259892,-532.29,0.00014356,2]
[353726271,1739998259902,-500.0,0.00014356,2]
[353726273,1739998259911,-770.11,0.00014356,2]
[353726276,1739998259923,-500.0,0.00014356,2]
[353726278,1739998259932,-500.0,0.00014356,2]
[353726280,1739998259942,-500.0,0.00014356,2]
[353726282,1739998259953,-724.13,0.00014356,2]
[353726284,1739998259963,-500.0,0.00014356,2]
[353726285,1739998259973,-500.0,0.00014356,2]
[353726287,1739998259983,-500.0,0.00014356,2]
[353726290,1739998259993,-286.16828603,0.00014356,2]
[353726292,1739998260003,-686.46,0.00014356,2]
[353726293,1739998260012,-8858.9,0.00014356,2]
[353726296,1739998260022,-584.99,0.00014356,2]
[353726298,1739998260032,-826.72,0.00014356,2]
[353726300,1739998260042,-823.17,0.00014356,2]
[353726302,1739998260052,-974.98,0.00014356,2]
[353726304,1739998260063,-547.55845176,0.00014356,2]
[353726306,1739998260073,-500.0,0.00014356,2]
[353726308,1739998260083,-500.0,0.00014356,2]
[353726310,1739998260093,-2651.57,0.00014356,2]
[353726312,1739998260103,-530.92,0.00014356,2]
[353726314,1739998260112,-500.0,0.00014356,2]
[353726316,1739998260121,-605.78,0.00014356,2]
[353726318,1739998260131,-960.62,0.00014356,2]
[353726320,1739998260140,-520.47,0.00014356,2]
[353726322,1739998260150,-514.43,0.00014356,2]
[353726324,1739998260160,-518.04248166,0.00014356,2]
[353726326,1739998260170,-500.0,0.00014356,2]
[353726328,1739998260179,-293.20710241,0.00014356,2]
[353726330,1739998260189,-500.0,0.00014356,2]
[353726332,1739998260199,-556.45,0.00014356,2]
[353726334,1739998260210,-500.0,0.00014356,2]
[353726336,1739998260220,-2343.02,0.00014356,2]
[353726338,1739998260230,-500.0,0.00014356,2]
[353726340,1739998260240,-5829.82,0.00014356,2]
[353726342,1739998260249,-2086.58,0.00014356,2]
[353726344,1739998260259,-941.7,0.00014356,2]
[353726346,1739998260269,-500.0,0.00014356,2]
[353726348,1739998260279,-1298.13,0.00014356,2]
[353726350,1739998260289,-252.59560907,0.00014356,2]
[353726352,1739998260299,-895.31,0.00014356,2]
[353726354,1739998260309,-1140.92,0.00014356,2]
[353726356,1739998260319,-2373.44,0.00014356,2]
[353726358,1739998260328,-500.0,0.00014356,2]
[353726360,1739998260338,-25588.85,0.00014356,2]
[353726362,1739998260347,-500.0,0.00014356,2]
[353726364,1739998260357,-1098.92,0.00014356,2]
[353726366,1739998260367,-500.0,0.00014356,2]
[353726368,1739998260376,-642.51,0.00014356,2]
[353726370,1739998260385,-11131.15,0.00014356,2]
[353726379,1739998260395,-1481.01,0.00014356,2]
[353726381,1739998260465,-2331.82,0.00014356,2]
[353726383,1739998260475,-840.9,0.00014356,2]
[353726385,1739998260484,-1405.2,0.00014356,2]
[353726387,1739998260493,-500.0,0.00014356,2]
[353726389,1739998260503,-1355.31,0.00014356,2]
[353726391,1739998260512,-2081.89,0.00014356,2]
[353726393,1739998260522,-1273.09,0.00014356,2]
[353726395,1739998260531,-500.0,0.00014356,2]
[353726397,1739998260541,-500.0,0.00014356,2]
[353726399,1739998260551,-3658.91,0.00014356,2]
[353726401,1739998260560,-500.0,0.00014356,2]
[353726403,1739998260569,-500.0,0.00014356,2]
[353726405,1739998260578,-1053.16,0.00014356,2]
[353726407,1739998260588,-559.97,0.00014356,2]
[353726409,1739998260599,-558.31,0.00014356,2]
[353726411,1739998260609,-500.0,0.00014356,2]
[353726413,1739998260620,-500.0,0.00014356,2]
[353726415,1739998260630,-500.0,0.00014356,2]
[353726417,1739998260641,-2610.53,0.00014356,2]
[353726419,1739998260650,-354.41575571,0.00014356,2]
[353726421,1739998260660,-1417.44,0.00014356,2]
[353726423,1739998260670,-1045.6,0.00014356,2]
[353726425,1739998260679,-1307.94,0.00014356,2]
[353726427,1739998260689,-7438.69753278,0.00014368,2]
[353726429,1739998260701,-179.67658215,0.000144,2]
[353726430,1739998260711,-356.12187364,0.0001442,2]
[353726432,1739998260720,-500.0,0.00014438,2]
[353726434,1739998260730,-500.0,0.00014438,2]
[353726436,1739998260740,-509.18,0.00014438,2]
[353726439,1739998260750,-735.72,0.00014438,2]
[353726441,1739998260760,-503.31,0.00014438,2]
[353726443,1739998260770,-500.0,0.00014438,2]
[353726445,1739998260780,-500.0,0.00014438,2]
[353726447,1739998260790,-500.0,0.00014438,2]
[353726449,1739998260799,-532.29,0.00014438,2]
[353726451,1739998260809,-500.0,0.00014438,2]
[353726453,1739998260819,-770.11,0.00014438,2]
[353726455,1739998260829,-500.0,0.00014438,2]
[353726457,1739998260838,-500.0,0.00014438,2]
[353726459,1739998260847,-500.0,0.00014438,2]
[353726461,1739998260857,-724.13,0.00014438,2]
[353726463,1739998260867,-500.0,0.00014438,2]
[353726465,1739998260876,-500.0,0.00014438,2]
[353726467,1739998260889,-500.0,0.00014438,2]
[353726469,1739998260898,-686.46,0.00014438,2]
[353726471,1739998260909,-8858.9,0.00014438,2]
[353726473,1739998260919,-584.99,0.00014438,2]
[353726475,1739998260928,-826.72,0.00014438,2]
[353726477,1739998260938,-823.17,0.00014438,2]
[353726479,1739998260952,-974.98,0.00014438,2]
[353726481,1739998260963,-500.0,0.00014438,2]
[353726483,1739998260974,-500.0,0.00014438,2]
[353726485,1739998260984,-2651.57,0.00014438,2]
[353726487,1739998260994,-530.92,0.00014438,2]
[353726489,1739998261005,-500.0,0.00014438,2]
[353726491,1739998261015,-605.78,0.00014438,2]
[353726493,1739998261027,-960.62,0.00014438,2]
[353726495,1739998261037,-520.47,0.00014438,2]
[353726497,1739998261047,-514.43,0.00014438,2]
[353726499,1739998261056,-500.0,0.00014438,2]
[353726501,1739998261066,-500.0,0.00014438,2]
[353726503,1739998261075,-556.45,0.00014438,2]
[353726505,1739998261085,-500.0,0.00014438,2]
[353726507,1739998261095,-2343.02,0.00014438,2]
[353726509,1739998261104,-500.0,0.00014438,2]
[353726511,1739998261114,-5829.82,0.00014438,2]
[353726513,1739998261123,-2086.58,0.00014438,2]
[353726515,1739998261133,-941.7,0.00014438,2]
[353726517,1739998261143,-499.99622996,0.00014438,2]
[353726519,1739998261154,-1298.13,0.00014438,2]
[353726521,1739998261163,-895.31,0.00014438,2]
[353726523,1739998261173,-1140.92,0.00014438,2]
[353726525,1739998261183,-2373.44,0.00014438,2]
[353726527,1739998261195,-500.0,0.00014438,2]
[353726529,1739998261207,-25588.85,0.00014438,2]
[353726531,1739998261216,-500.0,0.00014438,2]
[353726533,1739998261226,-1098.92,0.00014438,2]
[353726535,1739998261235,-503.30253068,0.00014438,2]
[353726537,1739998261245,-642.51,0.00014438,2]
[353726539,1739998261255,-11131.15,0.00014438,2]
[353726541,1739998261265,-1481.01,0.00014438,2]
[353726543,1739998261275,-2331.82,0.00014438,2]
[353726545,1739998261285,-840.9,0.00014438,2]
[353726547,1739998261294,-1405.2,0.00014438,2]
[353726549,1739998261303,-500.0,0.00014438,2]
[353726551,1739998261313,-1355.31,0.00014438,2]
[353726553,1739998261323,-2081.89,0.00014438,2]
[353726555,1739998261333,-1273.09,0.00014438,2]
[353726558,1739998261344,-500.0,0.00014438,2]
[353726560,1739998261353,-500.0,0.00014438,2]
[353726562,1739998261363,-3658.91,0.00014438,2]
[353726564,1739998261372,-500.0,0.00014438,2]
[353726566,1739998261381,-500.0,0.00014438,2]
[353726568,1739998261391,-1053.16,0.00014438,2]
[353726570,1739998261400,-559.97,0.00014438,2]
[353726572,1739998261410,-558.31,0.00014438,2]
[353726574,1739998261419,-500.0,0.00014438,2]
[353726576,1739998261428,-500.0,0.00014438,2]
[353726578,1739998261437,-500.0,0.00014438,2]
[353726580,1739998261447,-2610.53,0.00014438,2]
[353726582,1739998261457,-1417.44,0.00014438,2]
[353726584,1739998261467,-1045.6,0.00014438,2]
[353726592,1739998261476,-1307.94,0.00014438,2]
[353726594,1739998261544,-151.0,0.000145,2]
[353726596,1739998261553,-500.0,0.0001452,2]
[353726598,1739998261562,-313.16,0.0001452,2]
[353726600,1739998261571,-509.18,0.0001452,2]
[353726602,1739998261580,-735.72,0.0001452,2]
[353726604,1739998261589,-503.31,0.0001452,2]
[353726606,1739998261599,-500.0,0.0001452,2]
[353726608,1739998261609,-500.0,0.0001452,2]
[353726610,1739998261618,-500.0,0.0001452,2]
[353726612,1739998261628,-532.29,0.0001452,2]
[353726615,1739998261637,-500.0,0.0001452,2]
[353726617,1739998261647,-770.11,0.0001452,2]
[353726619,1739998261657,-325.46,0.0001452,2]
[353726621,1739998261666,-500.0,0.0001452,2]
[353726623,1739998261676,-500.0,0.0001452,2]
[353726625,1739998261686,-724.13,0.0001452,2]
[353726627,1739998261697,-500.0,0.0001452,2]
[353726629,1739998261706,-500.0,0.0001452,2]
[353726631,1739998261716,-500.0,0.0001452,2]
[353726633,1739998261726,-686.46,0.0001452,2]
[353726635,1739998261735,-8858.9,0.0001452,2]
[353726637,1739998261744,-584.99,0.0001452,2]
[353726639,1739998261754,-826.72,0.0001452,2]
[353726641,1739998261764,-823.17,0.0001452,2]
[353726643,1739998261773,-974.98,0.0001452,2]
[353726645,1739998261783,-500.0,0.0001452,2]
[353726647,1739998261792,-500.0,0.0001452,2]
[353726649,1739998261802,-2651.57,0.0001452,2]
[353726651,1739998261811,-530.92,0.0001452,2]
[353726653,1739998261820,-500.0,0.0001452,2]
[353726655,1739998261829,-605.78,0.0001452,2]
[353726657,1739998261839,-960.62,0.0001452,2]
[353726659,1739998261849,-520.47,0.0001452,2]
[353726661,1739998261859,-514.43,0.0001452,2]
[353726663,1739998261869,-500.0,0.0001452,2]
[353726665,1739998261884,-500.0,0.0001452,2]
[353726667,1739998261894,-556.45,0.0001452,2]
[353726669,1739998261904,-538.24745752,0.0001452,2]
[353726671,1739998261914,-2343.02,0.0001452,2]
[353726673,1739998261925,-500.0,0.0001452,2]
[353726675,1739998261935,-5829.82,0.0001452,2]
[353726677,1739998261945,-2086.58,0.0001452,2]
[353726679,1739998261955,-941.7,0.0001452,2]
[353726681,1739998261966,-1298.13,0.0001452,2]
[353726683,1739998261976,-895.31,0.0001452,2]
[353726684,1739998261986,-1140.92,0.0001452,2]
[353726685,1739998261995,-2373.44,0.0001452,2]
[353726686,1739998262005,-500.0,0.0001452,2]
[353726687,1739998262014,-25588.85,0.0001452,2]
[353726688,1739998262024,-500.0,0.0001452,2]
[353726689,1739998262033,-1098.92,0.0001452,2]
[353726690,1739998262043,-642.51,0.0001452,2]
[353726691,1739998262053,-11131.15,0.0001452,2]
[353726692,1739998262063,-1481.01,0.0001452,2]
[353726693,1739998262072,-2331.82,0.0001452,2]
[353726694,1739998262082,-840.9,0.0001452,2]
[353726695,1739998262091,-1405.2,0.0001452,2]
[353726696,1739998262101,-500.0,0.0001452,2]
[353726697,1739998262110,-1355.31,0.0001452,2]
[353726698,1739998262119,-2081.89,0.0001452,2]
[353726700,1739998262129,-1273.09,0.0001452,2]
[353726702,1739998262138,-500.0,0.0001452,2]
[353726704,1739998262148,-500.0,0.0001452,2]
[353726706,1739998262157,-3658.91,0.0001452,2]
[353726708,1739998262165,-500.0,0.0001452,2]
[353726710,1739998262175,-500.0,0.0001452,2]
[353726712,1739998262184,-1053.16,0.0001452,2]
[353726714,1739998262194,-559.97,0.0001452,2]
[353726716,1739998262204,-558.31,0.0001452,2]
[353726718,1739998262213,-500.0,0.0001452,2]
[353726720,1739998262222,-500.0,0.0001452,2]
[353726722,1739998262231,-500.0,0.0001452,2]
[353726724,1739998262240,-2610.53,0.0001452,2]
[353726726,1739998262251,-1417.44,0.0001452,2]
[353726728,1739998262260,-1045.6,0.0001452,2]
[353726730,1739998262270,-1307.94,0.0001452,2]
[353726732,1739998262279,-1000.0,0.00014522,2]
[353726734,1739998262288,-500.0,0.00014602,2]
[353726736,1739998262298,-509.18,0.00014602,2]
[353726738,1739998262307,-735.72,0.00014602,2]
[353726739,1739998262317,-503.31,0.00014602,2]
[353726741,1739998262326,-500.0,0.00014602,2]
[353726743,1739998262335,-500.0,0.00014602,2]
[353726745,1739998262345,-500.0,0.00014602,2]
[353726748,1739998262354,-532.29,0.00014602,2]
[353726750,1739998262364,-500.0,0.00014602,2]
[353726752,1739998262375,-770.11,0.00014602,2]
[353726754,1739998262385,-500.0,0.00014602,2]
[353726756,1739998262394,-500.0,0.00014602,2]
[353726758,1739998262404,-724.13,0.00014602,2]
[353726760,1739998262413,-500.0,0.00014602,2]
[353726761,1739998262423,-500.0,0.00014602,2]
[353726764,1739998262432,-500.0,0.00014602,2]
[353726765,1739998262442,-686.46,0.00014602,2]
[353726768,1739998262451,-8858.9,0.00014602,2]
[353726770,1739998262461,-584.99,0.00014602,2]
[353726771,1739998262470,-826.72,0.00014602,2]
[353726774,1739998262479,-823.17,0.00014602,2]
[353726776,1739998262489,-974.98,0.00014602,2]